[Event "Titled Tuesday Blitz June 20 Early 2023"]
[White "Khamdamova, Afruza"]
[Black "Demidov, Mikhail"]
[WhiteFideId "14210444"]
[BlackFideId "4197143"]
[WhiteElo "2312"]
[BlackElo "2500"]
[Result "0-1"]
[Round "1"]
[TimeControl "180+2"]
[Date "2023.06.20"]
[WhiteClock "0:00:00"]
[BlackClock "0:00:05"]
[Board "42"]

1. e4 {[%clk 0:03:00]}  g6 {[%clk 0:02:52]} 2. d4 {[%clk 0:03:00]}  Bg7 {[%clk 0:02:49]} 3. Nc3 {[%clk 0:03:00]}  a6 {[%clk 0:02:46]} 4. Be3 {[%clk 0:02:55]}  b5 {[%clk 0:02:45]} 5. Nf3 {[%clk 0:02:50]}  Bb7 {[%clk 0:02:45]} 6. Bd3 {[%clk 0:02:49]}  d6 {[%clk 0:02:45]} 7. O-O {[%clk 0:02:49]}  Nd7 {[%clk 0:02:46]} 8. Re1 {[%clk 0:02:38]}  c5 {[%clk 0:02:45]} 9. a4 {[%clk 0:02:07]}  b4 {[%clk 0:02:43]} 10. Ne2 {[%clk 0:02:06]}  cxd4 {[%clk 0:02:39]} 11. Bxd4 {[%clk 0:02:05]}  Ngf6 {[%clk 0:02:32]} 12. Ng3 {[%clk 0:02:04]}  O-O {[%clk 0:02:31]} 13. Qd2 {[%clk 0:02:01]}  a5 {[%clk 0:02:30]} 14. Rad1 {[%clk 0:01:59]}  Qc7 {[%clk 0:02:17]} 15. Bb5 {[%clk 0:01:50]}  Rfd8 {[%clk 0:02:13]} 16. Qe2 {[%clk 0:01:42]}  Rac8 {[%clk 0:02:02]} 17. Rd2 {[%clk 0:01:36]}  Nb6 {[%clk 0:01:27]} 18. b3 {[%clk 0:01:34]}  Nbd7 {[%clk 0:01:23]} 19. Bc4 {[%clk 0:01:31]}  e6 {[%clk 0:01:16]} 20. Red1 {[%clk 0:01:26]}  h6 {[%clk 0:01:10]} 21. h3 {[%clk 0:01:04]}  d5 {[%clk 0:01:10]} 22. exd5 {[%clk 0:01:02]}  Nxd5 {[%clk 0:01:08]} 23. Bxg7 {[%clk 0:01:01]}  Kxg7 {[%clk 0:01:09]} 24. Bxd5 {[%clk 0:00:54]}  Bxd5 {[%clk 0:01:08]} 25. Nd4 {[%clk 0:00:42]}  Nf6 {[%clk 0:01:05]} 26. Qe3 {[%clk 0:00:35]}  Bb7 {[%clk 0:00:54]} 27. Nb5 {[%clk 0:00:22]}  Qc6 {[%clk 0:00:42]} 28. f3 {[%clk 0:00:22]}  Rxd2 {[%clk 0:00:40]} 29. Rxd2 {[%clk 0:00:22]}  Qc5 {[%clk 0:00:40]} 30. Qxc5 {[%clk 0:00:21]}  Rxc5 {[%clk 0:00:41]} 31. Ne2 {[%clk 0:00:21]}  Nd5 {[%clk 0:00:38]} 32. Ned4 {[%clk 0:00:21]}  Kf8 {[%clk 0:00:31]} 33. Nd6 {[%clk 0:00:20]}  Ba6 {[%clk 0:00:30]} 34. Ne4 {[%clk 0:00:20]}  Rc7 {[%clk 0:00:30]} 35. Kf2 {[%clk 0:00:18]}  Ke7 {[%clk 0:00:30]} 36. Ne2 {[%clk 0:00:14]}  Bxe2 {[%clk 0:00:29]} 37. Rxe2 {[%clk 0:00:14]}  f5 {[%clk 0:00:27]} 38. Ng3 {[%clk 0:00:13]}  Nc3 {[%clk 0:00:26]} 39. Rd2 {[%clk 0:00:13]}  Nb1 {[%clk 0:00:27]} 40. Re2 {[%clk 0:00:13]}  Na3 {[%clk 0:00:27]} 41. Nf1 {[%clk 0:00:13]}  Nxc2 {[%clk 0:00:26]} 42. Nd2 {[%clk 0:00:13]}  Nd4 {[%clk 0:00:23]} 43. Re3 {[%clk 0:00:13]}  Rc2 {[%clk 0:00:23]} 44. Ke1 {[%clk 0:00:12]}  Rb2 {[%clk 0:00:23]} 45. Rd3 {[%clk 0:00:12]}  e5 {[%clk 0:00:21]} 46. Re3 {[%clk 0:00:11]}  Kf6 {[%clk 0:00:20]} 47. Rd3 {[%clk 0:00:09]}  h5 {[%clk 0:00:19]} 48. g3 {[%clk 0:00:09]}  g5 {[%clk 0:00:17]} 49. f4 {[%clk 0:00:09]}  g4 {[%clk 0:00:16]} 50. h4 {[%clk 0:00:06]}  Nf3+ {[%clk 0:00:14]} 51. Nxf3 {[%clk 0:00:06]}  gxf3 {[%clk 0:00:14]} 52. fxe5+ {[%clk 0:00:06]}  Kxe5 {[%clk 0:00:15]} 53. Rxf3 {[%clk 0:00:06]}  Ke4 {[%clk 0:00:15]} 54. Rf4+ {[%clk 0:00:06]}  Ke3 {[%clk 0:00:16]} 55. Kf1 {[%clk 0:00:06]}  Rxb3 {[%clk 0:00:15]} 56. Rxf5 {[%clk 0:00:06]}  Rb1+ {[%clk 0:00:13]} 57. Kg2 {[%clk 0:00:06]}  b3 {[%clk 0:00:14]} 58. Rxa5 {[%clk 0:00:06]}  Kd3 {[%clk 0:00:15]} 59. Rxh5 {[%clk 0:00:06]}  b2 {[%clk 0:00:13]} 60. Rb5 {[%clk 0:00:06]}  Kc3 {[%clk 0:00:13]} 61. h5 {[%clk 0:00:07]}  Ra1 {[%clk 0:00:13]} 62. g4 {[%clk 0:00:06]}  b1=Q {[%clk 0:00:14]} 63. Rxb1 {[%clk 0:00:06]}  Rxb1 {[%clk 0:00:15]} 64. Kg3 {[%clk 0:00:06]}  Kd4 {[%clk 0:00:15]} 65. Kf4 {[%clk 0:00:07]}  Kd5 {[%clk 0:00:11]} 66. Kf5 {[%clk 0:00:07]}  Kd6 {[%clk 0:00:09]} 67. Kf6 {[%clk 0:00:07]}  Rf1+ {[%clk 0:00:09]} 68. Kg6 {[%clk 0:00:07]}  Ke7 {[%clk 0:00:08]} 69. g5 {[%clk 0:00:05]}  Kf8 {[%clk 0:00:09]} 70. h6 {[%clk 0:00:06]}  Kg8 {[%clk 0:00:09]} 71. a5 {[%clk 0:00:03]}  Rc1 {[%clk 0:00:08]} 72. Kf5 {[%clk 0:00:03]}  Rc5+ {[%clk 0:00:08]} 73. Kf6 {[%clk 0:00:03]}  Rc6+ {[%clk 0:00:05]} 74. Kf5 {[%clk 0:00:03]}  Kh7 {[%clk 0:00:06]} 75. Kg4 {[%clk 0:00:00]}  Kg6 {[%clk 0:00:05]} 0-1


[Site "https://www.chess.com"]

[Event "Titled Tuesday Blitz June 20 Early 2023"]
[White "Babazada, Khazar"]
[Black "a-z30"]
[WhiteFideId "13413554"]
[WhiteElo "2369"]
[BlackElo "2493"]
[Result "0-1"]
[Round "1"]
[TimeControl "180+2"]
[Date "2023.06.20"]
[WhiteClock "0:00:11"]
[BlackClock "0:00:05"]
[Board "45"]

1. Nf3 {[%clk 0:02:57]}  Nf6 {[%clk 0:02:56]} 2. g3 {[%clk 0:02:56]}  b6 {[%clk 0:02:54]} 3. Bg2 {[%clk 0:02:55]}  Bb7 {[%clk 0:02:54]} 4. O-O {[%clk 0:02:55]}  c5 {[%clk 0:02:54]} 5. d3 {[%clk 0:02:35]}  d6 {[%clk 0:02:39]} 6. Nc3 {[%clk 0:02:32]}  g6 {[%clk 0:02:29]} 7. e4 {[%clk 0:02:31]}  Bg7 {[%clk 0:02:28]} 8. Bd2 {[%clk 0:02:32]}  O-O {[%clk 0:02:27]} 9. a3 {[%clk 0:02:32]}  Nc6 {[%clk 0:02:17]} 10. Rb1 {[%clk 0:02:31]}  Qd7 {[%clk 0:01:53]} 11. b4 {[%clk 0:02:29]}  Rac8 {[%clk 0:01:52]} 12. Ne2 {[%clk 0:02:14]}  e5 {[%clk 0:01:32]} 13. c4 {[%clk 0:02:13]}  h6 {[%clk 0:01:24]} 14. Qc1 {[%clk 0:02:11]}  Kh7 {[%clk 0:01:23]} 15. Nh4 {[%clk 0:02:12]}  Nd4 {[%clk 0:01:19]} 16. Nxd4 {[%clk 0:02:12]}  cxd4 {[%clk 0:01:16]} 17. Qd1 {[%clk 0:01:48]}  b5 {[%clk 0:01:14]} 18. Qe2 {[%clk 0:01:48]}  bxc4 {[%clk 0:01:08]} 19. dxc4 {[%clk 0:01:49]}  Rc7 {[%clk 0:00:59]} 20. Rfc1 {[%clk 0:01:44]}  Rfc8 {[%clk 0:00:59]} 21. Bf1 {[%clk 0:01:42]}  Bxe4 {[%clk 0:00:51]} 22. Rb3 {[%clk 0:01:40]}  Ba8 {[%clk 0:00:38]} 23. Bg2 {[%clk 0:01:37]}  Bxg2 {[%clk 0:00:37]} 24. Nxg2 {[%clk 0:01:37]}  Qe6 {[%clk 0:00:37]} 25. Re1 {[%clk 0:01:01]}  Rxc4 {[%clk 0:00:36]} 26. Rbb1 {[%clk 0:01:01]}  Rc2 {[%clk 0:00:35]} 27. Qd1 {[%clk 0:01:01]}  Qa2 {[%clk 0:00:31]} 28. Re2 {[%clk 0:01:01]}  Nd5 {[%clk 0:00:28]} 29. Ne1 {[%clk 0:01:01]}  Nc3 {[%clk 0:00:26]} 30. Bxc3 {[%clk 0:00:49]}  Rxe2 {[%clk 0:00:27]} 31. Ra1 {[%clk 0:00:49]}  Qc4 {[%clk 0:00:25]} 32. Bd2 {[%clk 0:00:40]}  Rxd2 {[%clk 0:00:21]} 33. Qxd2 {[%clk 0:00:40]}  e4 {[%clk 0:00:22]} 34. Rd1 {[%clk 0:00:39]}  d3 {[%clk 0:00:21]} 35. Ng2 {[%clk 0:00:36]}  Qc2 {[%clk 0:00:21]} 36. Qe1 {[%clk 0:00:35]}  Qe2 {[%clk 0:00:20]} 37. Qxe2 {[%clk 0:00:28]}  dxe2 {[%clk 0:00:20]} 38. Re1 {[%clk 0:00:29]}  Rc3 {[%clk 0:00:18]} 39. Nf4 {[%clk 0:00:24]}  f5 {[%clk 0:00:13]} 40. Rxe2 {[%clk 0:00:24]}  Rxa3 {[%clk 0:00:13]} 41. Rc2 {[%clk 0:00:25]}  g5 {[%clk 0:00:12]} 42. Ne6 {[%clk 0:00:25]}  Be5 {[%clk 0:00:11]} 43. h4 {[%clk 0:00:24]}  g4 {[%clk 0:00:11]} 44. h5 {[%clk 0:00:25]}  Kg8 {[%clk 0:00:11]} 45. Rc7 {[%clk 0:00:20]}  Ra2 {[%clk 0:00:10]} 46. b5 {[%clk 0:00:17]}  Rb2 {[%clk 0:00:09]} 47. Rb7 {[%clk 0:00:17]}  d5 {[%clk 0:00:05]} 48. Rxa7 {[%clk 0:00:11]}  Rxb5 {[%clk 0:00:05]} 49. Nc7 {[%clk 0:00:12]}  Rb1+ {[%clk 0:00:05]} 50. Kg2 {[%clk 0:00:12]}  Bxc7 {[%clk 0:00:05]} 51. Ra1 {[%clk 0:00:11]}  Rxa1 {[%clk 0:00:05]} 0-1


[Site "https://www.chess.com"]

[Event "Titled Tuesday Blitz June 20 Early 2023"]
[White "Bharath Subramaniyam H"]
[Black "Przybylski, Wojciech"]
[WhiteFideId "46634827"]
[BlackFideId "1117599"]
[WhiteElo "2400"]
[BlackElo "2228"]
[Result "1-0"]
[Round "1"]
[TimeControl "180+2"]
[Date "2023.06.20"]
[WhiteClock "0:01:27"]
[BlackClock "0:00:02"]
[Board "47"]

1. b3 {[%clk 0:02:55]}  e5 {[%clk 0:01:02]} 2. Bb2 {[%clk 0:02:45]}  Nc6 {[%clk 0:01:02]} 3. c4 {[%clk 0:02:45]}  Nf6 {[%clk 0:01:01]} 4. e3 {[%clk 0:02:46]}  Be7 {[%clk 0:01:00]} 5. a3 {[%clk 0:02:43]}  a5 {[%clk 0:00:59]} 6. Qc2 {[%clk 0:02:42]}  O-O {[%clk 0:00:59]} 7. Nc3 {[%clk 0:02:41]}  d6 {[%clk 0:00:58]} 8. Nf3 {[%clk 0:02:41]}  Be6 {[%clk 0:00:57]} 9. Be2 {[%clk 0:02:38]}  Qd7 {[%clk 0:00:56]} 10. O-O {[%clk 0:02:35]}  h6 {[%clk 0:00:56]} 11. d4 {[%clk 0:02:31]}  exd4 {[%clk 0:00:56]} 12. exd4 {[%clk 0:02:30]}  d5 {[%clk 0:00:56]} 13. Ne5 {[%clk 0:02:25]}  Qc8 {[%clk 0:00:50]} 14. Rad1 {[%clk 0:02:15]}  Rd8 {[%clk 0:00:48]} 15. Bf3 {[%clk 0:02:12]}  Bf5 {[%clk 0:00:26]} 16. Qe2 {[%clk 0:02:08]}  Bd6 {[%clk 0:00:12]} 17. cxd5 {[%clk 0:02:00]}  Ne7 {[%clk 0:00:12]} 18. Nc4 {[%clk 0:01:53]}  Qd7 {[%clk 0:00:12]} 19. Rfe1 {[%clk 0:01:46]}  Re8 {[%clk 0:00:12]} 20. Ne5 {[%clk 0:01:45]}  Qc8 {[%clk 0:00:12]} 21. Qc4 {[%clk 0:01:41]}  Ng6 {[%clk 0:00:12]} 22. Nb5 {[%clk 0:01:39]}  Nf4 {[%clk 0:00:08]} 23. g3 {[%clk 0:01:33]}  Ng6 {[%clk 0:00:08]} 24. Rc1 {[%clk 0:01:31]}  Bd7 {[%clk 0:00:07]} 25. Nxc7 {[%clk 0:01:29]}  Bxc7 {[%clk 0:00:06]} 26. Qxc7 {[%clk 0:01:29]}  Bf5 {[%clk 0:00:05]} 27. Qxf7+ {[%clk 0:01:28]}  Kh7 {[%clk 0:00:06]} 28. Rxc8 {[%clk 0:01:28]}  Raxc8 {[%clk 0:00:02]} 29. d6 {[%clk 0:01:27]} 1-0


[Site "https://www.chess.com"]

[Event "Titled Tuesday Blitz June 20 Early 2023"]
[White "Vyatkin, Dmitry"]
[Black "Drozdowski, Kacper"]
[WhiteFideId "4171900"]
[BlackFideId "1136720"]
[WhiteElo "2279"]
[BlackElo "2497"]
[Result "1/2-1/2"]
[Round "1"]
[TimeControl "180+2"]
[Date "2023.06.20"]
[WhiteClock "0:00:07"]
[BlackClock "0:00:13"]
[Board "50"]

1. d4 {[%clk 0:02:52]}  Nf6 {[%clk 0:02:59]} 2. c4 {[%clk 0:02:46]}  e6 {[%clk 0:02:59]} 3. g3 {[%clk 0:02:45]}  Bb4+ {[%clk 0:02:57]} 4. Bd2 {[%clk 0:02:44]}  Qe7 {[%clk 0:02:55]} 5. Bg2 {[%clk 0:02:43]}  O-O {[%clk 0:02:55]} 6. e4 {[%clk 0:02:43]}  Bxd2+ {[%clk 0:02:51]} 7. Qxd2 {[%clk 0:02:39]}  d6 {[%clk 0:02:52]} 8. Ne2 {[%clk 0:02:39]}  e5 {[%clk 0:02:51]} 9. Nbc3 {[%clk 0:02:34]}  Nc6 {[%clk 0:02:19]} 10. O-O {[%clk 0:02:19]}  Bg4 {[%clk 0:02:15]} 11. f3 {[%clk 0:02:18]}  Bd7 {[%clk 0:02:15]} 12. Rfd1 {[%clk 0:02:10]}  exd4 {[%clk 0:02:12]} 13. Nxd4 {[%clk 0:02:09]}  Nxd4 {[%clk 0:02:12]} 14. Qxd4 {[%clk 0:02:09]}  Bc6 {[%clk 0:02:13]} 15. Rac1 {[%clk 0:02:01]}  Rfe8 {[%clk 0:02:12]} 16. Nd5 {[%clk 0:01:58]}  Bxd5 {[%clk 0:02:09]} 17. cxd5 {[%clk 0:01:58]}  Red8 {[%clk 0:01:58]} 18. Bh3 {[%clk 0:01:57]}  a6 {[%clk 0:01:51]} 19. Rc3 {[%clk 0:01:56]}  Ne8 {[%clk 0:01:48]} 20. Rdc1 {[%clk 0:01:52]}  Qe5 {[%clk 0:01:48]} 21. Qxe5 {[%clk 0:00:51]}  dxe5 {[%clk 0:01:49]} 22. Rxc7 {[%clk 0:00:51]}  Nxc7 {[%clk 0:01:48]} 23. Rxc7 {[%clk 0:00:51]}  Kf8 {[%clk 0:01:38]} 24. Kf2 {[%clk 0:00:51]}  Rab8 {[%clk 0:01:34]} 25. Ke3 {[%clk 0:00:51]}  Rd6 {[%clk 0:01:28]} 26. f4 {[%clk 0:00:50]}  Rh6 {[%clk 0:01:27]} 27. Bc8 {[%clk 0:00:43]}  exf4+ {[%clk 0:01:18]} 28. gxf4 {[%clk 0:00:43]}  Ke8 {[%clk 0:00:52]} 29. Bxb7 {[%clk 0:00:30]}  Rxh2 {[%clk 0:00:52]} 30. d6 {[%clk 0:00:28]}  Rxb2 {[%clk 0:00:37]} 31. d7+ {[%clk 0:00:17]}  Kd8 {[%clk 0:00:29]} 32. Rc8+ {[%clk 0:00:17]}  Kxd7 {[%clk 0:00:30]} 33. Rxb8 {[%clk 0:00:18]}  Kc7 {[%clk 0:00:28]} 34. Rf8 {[%clk 0:00:19]}  Rxb7 {[%clk 0:00:25]} 35. Rxf7+ {[%clk 0:00:19]}  Kc6 {[%clk 0:00:25]} 36. Rf8 {[%clk 0:00:16]}  Kd6 {[%clk 0:00:24]} 37. Ra8 {[%clk 0:00:15]}  Ke7 {[%clk 0:00:16]} 38. Rxa6 {[%clk 0:00:14]}  h5 {[%clk 0:00:15]} 39. Kf3 {[%clk 0:00:10]}  Kf7 {[%clk 0:00:15]} 40. f5 {[%clk 0:00:10]}  Rb1 {[%clk 0:00:14]} 41. a4 {[%clk 0:00:10]}  Rf1+ {[%clk 0:00:14]} 42. Ke2 {[%clk 0:00:09]}  Rg1 {[%clk 0:00:13]} 43. e5 {[%clk 0:00:09]}  h4 {[%clk 0:00:12]} 44. Ra7+ {[%clk 0:00:10]}  Kf8 {[%clk 0:00:13]} 45. Rb7 {[%clk 0:00:05]}  Rg5 {[%clk 0:00:12]} 46. f6 {[%clk 0:00:04]}  Rxe5+ {[%clk 0:00:12]} 47. Kd3 {[%clk 0:00:04]}  gxf6 {[%clk 0:00:12]} 48. Rh7 {[%clk 0:00:05]}  Rd5+ {[%clk 0:00:09]} 49. Kc4 {[%clk 0:00:04]}  Ra5 {[%clk 0:00:08]} 50. Kb4 {[%clk 0:00:05]}  Rd5 {[%clk 0:00:07]} 51. Rxh4 {[%clk 0:00:05]}  Kf7 {[%clk 0:00:07]} 52. a5 {[%clk 0:00:04]}  Kg6 {[%clk 0:00:08]} 53. a6 {[%clk 0:00:04]}  Rd8 {[%clk 0:00:08]} 54. Kb5 {[%clk 0:00:04]}  Kg5 {[%clk 0:00:08]} 55. Rh1 {[%clk 0:00:04]}  f5 {[%clk 0:00:08]} 56. a7 {[%clk 0:00:04]}  Ra8 {[%clk 0:00:08]} 57. Kb6 {[%clk 0:00:05]}  f4 {[%clk 0:00:09]} 58. Kb7 {[%clk 0:00:05]}  Rxa7+ {[%clk 0:00:09]} 59. Kxa7 {[%clk 0:00:05]}  f3 {[%clk 0:00:10]} 60. Kb6 {[%clk 0:00:05]}  Kf4 {[%clk 0:00:10]} 61. Kc5 {[%clk 0:00:06]}  Ke3 {[%clk 0:00:11]} 62. Kd5 {[%clk 0:00:06]}  f2 {[%clk 0:00:11]} 63. Ke5 {[%clk 0:00:06]}  Ke2 {[%clk 0:00:12]} 64. Kf4 {[%clk 0:00:06]}  f1=Q+ {[%clk 0:00:12]} 65. Rxf1 {[%clk 0:00:07]}  Kxf1 {[%clk 0:00:13]} 1/2-1/2


[Site "https://www.chess.com"]

[Event "Titled Tuesday Blitz June 20 Early 2023"]
[White "Ahmadzada, Ahmad"]
[Black "ArchibaldCerveza29"]
[WhiteFideId "13413007"]
[WhiteElo "2388"]
[BlackElo "2483"]
[Result "1-0"]
[Round "1"]
[TimeControl "180+2"]
[Date "2023.06.20"]
[WhiteClock "0:01:29"]
[BlackClock "0:00:19"]
[Board "51"]

1. Nf3 {[%clk 0:02:57]}  d5 {[%clk 0:02:59]} 2. g3 {[%clk 0:02:57]}  Nf6 {[%clk 0:02:59]} 3. Bg2 {[%clk 0:02:58]}  e6 {[%clk 0:03:00]} 4. c4 {[%clk 0:02:57]}  Be7 {[%clk 0:03:00]} 5. O-O {[%clk 0:02:57]}  O-O {[%clk 0:03:01]} 6. b3 {[%clk 0:02:57]}  c5 {[%clk 0:03:00]} 7. Bb2 {[%clk 0:02:56]}  d4 {[%clk 0:02:51]} 8. e3 {[%clk 0:02:55]}  Nc6 {[%clk 0:02:51]} 9. exd4 {[%clk 0:02:55]}  cxd4 {[%clk 0:02:51]} 10. Re1 {[%clk 0:02:55]}  Re8 {[%clk 0:02:47]} 11. d3 {[%clk 0:02:55]}  Bf8 {[%clk 0:02:43]} 12. a3 {[%clk 0:02:55]}  a5 {[%clk 0:02:42]} 13. Ne5 {[%clk 0:02:56]}  Nxe5 {[%clk 0:02:38]} 14. Rxe5 {[%clk 0:02:56]}  Bd6 {[%clk 0:02:38]} 15. Re1 {[%clk 0:02:52]}  e5 {[%clk 0:02:38]} 16. Nd2 {[%clk 0:02:53]}  Bg4 {[%clk 0:02:37]} 17. Qc2 {[%clk 0:02:54]}  Qc7 {[%clk 0:02:21]} 18. Ne4 {[%clk 0:02:54]}  Be7 {[%clk 0:02:16]} 19. Qd2 {[%clk 0:02:53]}  Bf5 {[%clk 0:02:11]} 20. Nxf6+ {[%clk 0:02:51]}  Bxf6 {[%clk 0:02:12]} 21. b4 {[%clk 0:02:51]}  axb4 {[%clk 0:02:11]} 22. axb4 {[%clk 0:02:52]}  h6 {[%clk 0:02:03]} 23. Bd5 {[%clk 0:02:48]}  Qb6 {[%clk 0:01:51]} 24. b5 {[%clk 0:02:42]}  Qc5 {[%clk 0:01:44]} 25. Bxb7 {[%clk 0:02:38]}  Rxa1 {[%clk 0:01:41]} 26. Rxa1 {[%clk 0:02:39]}  e4 {[%clk 0:01:42]} 27. dxe4 {[%clk 0:02:39]}  Bxe4 {[%clk 0:01:41]} 28. Re1 {[%clk 0:02:40]}  Bxb7 {[%clk 0:01:31]} 29. Rxe8+ {[%clk 0:02:40]}  Kh7 {[%clk 0:01:32]} 30. Qd3+ {[%clk 0:02:31]}  g6 {[%clk 0:01:32]} 31. Rb8 {[%clk 0:02:02]}  Qc7 {[%clk 0:01:25]} 32. Rxb7 {[%clk 0:02:02]}  Qxb7 {[%clk 0:01:26]} 33. c5 {[%clk 0:02:03]}  Qd5 {[%clk 0:01:21]} 34. c6 {[%clk 0:02:00]}  Qc5 {[%clk 0:01:14]} 35. Ba3 {[%clk 0:01:59]}  Qb6 {[%clk 0:01:08]} 36. Qc4 {[%clk 0:01:58]}  Qa5 {[%clk 0:00:54]} 37. Bb4 {[%clk 0:01:45]}  Qa1+ {[%clk 0:00:53]} 38. Kg2 {[%clk 0:01:44]}  Qa8 {[%clk 0:00:36]} 39. b6 {[%clk 0:01:40]}  Qe8 {[%clk 0:00:33]} 40. c7 {[%clk 0:01:33]}  Qe4+ {[%clk 0:00:33]} 41. f3 {[%clk 0:01:33]}  Qb1 {[%clk 0:00:21]} 42. Qxf7+ {[%clk 0:01:29]}  Bg7 {[%clk 0:00:21]} 43. c8=Q {[%clk 0:01:29]}  Qb2+ {[%clk 0:00:19]} 44. Kh3 {[%clk 0:01:29]} 1-0


[Site "https://www.chess.com"]

[Event "Titled Tuesday Blitz June 20 Early 2023"]
[White "Delorme, Axel"]
[Black "Pichot, Alan"]
[WhiteFideId "632023"]
[BlackFideId "110973"]
[WhiteElo "2478"]
[BlackElo "2573"]
[Result "0-1"]
[Round "1"]
[TimeControl "180+2"]
[Date "2023.06.20"]
[WhiteClock "0:00:05"]
[BlackClock "0:00:11"]
[Board "52"]

1. e4 {[%clk 0:02:58]}  c5 {[%clk 0:02:57]} 2. Nf3 {[%clk 0:02:58]}  d6 {[%clk 0:02:56]} 3. Bb5+ {[%clk 0:02:59]}  Nd7 {[%clk 0:02:54]} 4. Ba4 {[%clk 0:02:59]}  Nf6 {[%clk 0:02:52]} 5. O-O {[%clk 0:02:59]}  a6 {[%clk 0:02:49]} 6. c4 {[%clk 0:02:58]}  e6 {[%clk 0:02:42]} 7. Nc3 {[%clk 0:02:58]}  b6 {[%clk 0:02:38]} 8. d4 {[%clk 0:02:54]}  cxd4 {[%clk 0:02:37]} 9. Nxd4 {[%clk 0:02:52]}  Bb7 {[%clk 0:02:37]} 10. Re1 {[%clk 0:02:51]}  Be7 {[%clk 0:02:36]} 11. Nc6 {[%clk 0:02:48]}  Bxc6 {[%clk 0:02:35]} 12. Bxc6 {[%clk 0:02:49]}  Rc8 {[%clk 0:02:36]} 13. Qa4 {[%clk 0:02:48]}  O-O {[%clk 0:02:34]} 14. Bxd7 {[%clk 0:02:39]}  Nxd7 {[%clk 0:02:34]} 15. Qxa6 {[%clk 0:02:36]}  Qc7 {[%clk 0:01:50]} 16. Bf4 {[%clk 0:02:07]}  Qxc4 {[%clk 0:01:41]} 17. Qxc4 {[%clk 0:02:08]}  Rxc4 {[%clk 0:01:41]} 18. Rad1 {[%clk 0:02:09]}  Ne5 {[%clk 0:01:41]} 19. Bxe5 {[%clk 0:01:43]}  dxe5 {[%clk 0:01:41]} 20. Rd3 {[%clk 0:01:44]}  Bc5 {[%clk 0:01:39]} 21. Red1 {[%clk 0:01:41]}  Bd4 {[%clk 0:01:38]} 22. Kf1 {[%clk 0:01:18]}  g6 {[%clk 0:01:30]} 23. f3 {[%clk 0:01:13]}  Rfc8 {[%clk 0:01:24]} 24. Nb5 {[%clk 0:01:06]}  Bxb2 {[%clk 0:01:19]} 25. Nd6 {[%clk 0:01:04]}  Bd4 {[%clk 0:01:14]} 26. Nxc8 {[%clk 0:01:00]}  Rxc8 {[%clk 0:01:14]} 27. Ke2 {[%clk 0:00:59]}  Rc2+ {[%clk 0:01:14]} 28. R3d2 {[%clk 0:00:59]}  Rc5 {[%clk 0:01:13]} 29. Rb1 {[%clk 0:00:54]}  Ra5 {[%clk 0:01:13]} 30. Rc2 {[%clk 0:00:51]}  Kg7 {[%clk 0:01:12]} 31. Kd3 {[%clk 0:00:48]}  Kf6 {[%clk 0:01:09]} 32. g3 {[%clk 0:00:40]}  Bc5 {[%clk 0:01:08]} 33. Kc4 {[%clk 0:00:35]}  Kg5 {[%clk 0:01:04]} 34. Rd1 {[%clk 0:00:31]}  Ra4+ {[%clk 0:01:01]} 35. Kb5 {[%clk 0:00:31]}  Ra3 {[%clk 0:01:01]} 36. Rf1 {[%clk 0:00:25]}  f5 {[%clk 0:01:01]} 37. Kc6 {[%clk 0:00:23]}  Ra4 {[%clk 0:00:51]} 38. Re2 {[%clk 0:00:21]}  Kf6 {[%clk 0:00:49]} 39. Rd1 {[%clk 0:00:17]}  Bd4 {[%clk 0:00:42]} 40. Rf1 {[%clk 0:00:14]}  Rc4+ {[%clk 0:00:36]} 41. Kb5 {[%clk 0:00:15]}  Rc5+ {[%clk 0:00:36]} 42. Kb4 {[%clk 0:00:14]}  Rc8 {[%clk 0:00:29]} 43. a4 {[%clk 0:00:13]}  g5 {[%clk 0:00:28]} 44. g4 {[%clk 0:00:13]}  h5 {[%clk 0:00:27]} 45. h3 {[%clk 0:00:11]}  Rc7 {[%clk 0:00:24]} 46. a5 {[%clk 0:00:08]}  Bc3+ {[%clk 0:00:21]} 47. Kb5 {[%clk 0:00:07]}  bxa5 {[%clk 0:00:13]} 48. exf5 {[%clk 0:00:06]}  exf5 {[%clk 0:00:13]} 49. Rc2 {[%clk 0:00:06]}  Rb7+ {[%clk 0:00:13]} 50. Kc6 {[%clk 0:00:05]}  Rb3 {[%clk 0:00:13]} 51. Rfc1 {[%clk 0:00:06]}  Bb4 {[%clk 0:00:12]} 52. Kd5 {[%clk 0:00:06]}  Rd3+ {[%clk 0:00:10]} 53. Kc4 {[%clk 0:00:06]}  Rxf3 {[%clk 0:00:11]} 54. Kb5 {[%clk 0:00:07]}  fxg4 {[%clk 0:00:10]} 55. Rc6+ {[%clk 0:00:07]}  Kf5 {[%clk 0:00:10]} 56. hxg4+ {[%clk 0:00:08]}  hxg4 {[%clk 0:00:11]} 57. Rc8 {[%clk 0:00:08]}  g3 {[%clk 0:00:11]} 58. R1c7 {[%clk 0:00:08]}  g2 {[%clk 0:00:10]} 59. Rf7+ {[%clk 0:00:08]}  Kg4 {[%clk 0:00:11]} 60. Rc4+ {[%clk 0:00:05]}  Rf4 {[%clk 0:00:11]} 0-1


[Site "https://www.chess.com"]